Workbook

Sheet Bestandsschutz
B1: für Arbeitnehmer im Übergangsbereich von 450,01 bis 520,00 €, deren Beschäftigungsverhältnis bereits bestanden hat | F1: Beitrag | G1: Satz | H1: halber Satz | K1: PV-Beitragszuschlag Kinderlose | N1: 0.0035
B2: AE | C2: Arbeitsentgelt | E2: 510 | F2: KV | G2: 0.146 | H2: =G2/2 -> 0.073
B3: G | C3: Geringfügigkeitsgrenze | E3: 520 | F3: ZB | G3: 0.015 | H3: 0.0075
E4: 1300 | F4: RV | G4: 0.186 | H4: 0.093
B5: F | C5: 0.7509 | D5: (30% ./. GSV-Beitragssatz) | E5: bis 30.09.2022 | F5: AV | G5: 0.024 | H5: 0.012
B6: F | C6: 0.7009 | D6: (28% ./. GSV-Beitragssatz) | E6: ab 01.10.2022 | F6: PV | G6: 0.0305 | H6: 0.01525
F8: PV-Zuschlag | G8: 0.0035 | H8: 0.00175
A9: A | B9: Gesamtbeitrag je Versicherungszweig | D9: aus der beitragspflichtigen Einnahme, die sich nach der Formel (rechts) ermittelt: | H9: Gesamtbeitrag | K9: Beitragspflichtige Einnahme
E10: BE (Gesamt) | F10: max. 1.600€!! | K10: Kurzformel
F11: =ROUND(E2*K11+N11,2) -> 405.82 | K11: 1.13187647 | L11: x | M11: AE | N11: -171.439412
B12: Ermittlung des Gesamtbeitrages
B13: Beitragspflichtige Einnahme | C13: x | D13: halber Beitragssatz | E13: ergibt halber Beitrag | F13: kaufmännisch runden | G13: x2 | K13: zur Ermittlung der Beitragspflichtigen Einnahme
B14: =F11 -> 405.82 | C14: KV | D14: =H2 -> 0.073 | E14: =B14*D14 -> 29.62486 | F14: =ROUND(E14,2) -> 29.62 | G14: =F14*2 -> 59.24
C15: ZB | D15: =H3 -> 0.0075 | E15: =B14*D15 -> 3.04365 | F15: =ROUND(E15,2) -> 3.04 | G15: =F15*2 -> 6.08 | H15: =SUM(G14:G15) -> 65.32
C17: RV | D17: =H4 -> 0.093 | E17: =B14*D17 -> 37.74126 | F17: =ROUND(E17,2) -> 37.74 | G17: =F17*2 -> 75.48 | H17: =F17*2 -> 75.48
C18: AV | D18: =H5 -> 0.012 | E18: =B14*D18 -> 4.86984 | F18: =ROUND(E18,2) -> 4.87 | G18: =F18*2 -> 9.74 | H18: =G18 -> 9.74
C19: PV | D19: =H6 -> 0.01525 | E19: =B14*D19 -> 6.188755 | F19: =ROUND(E19,2) -> 6.19 | G19: =F19*2 -> 12.38 | H19: =F19*2 -> 12.38
C20: PV-Zuschlag | D20: =G8 -> 0.0035 | H20: =G8*B14 -> 1.42037
H21: =SUM(H15:H20) -> 164.34037
I22: (Gesamtbeitrag ./. Arbeitgeber-Anteil)
A23: B | B23: Beitragsanteil Arbeitgeber | C23: aus dem tatsächlichen Arbeitsentgelt | F23: =E2 -> 510 | H23: Arbeitgeber-Anteil | I23: Arbeitnehmer- | J23: (A - B = C)
I24: Anteile | J24: C
B25: tatsächliches Arbeitsentgelt | D25: halber Beitragssatz | E25: ergibt halber Beitrag | I25: siehe Entgeltabrechnung
B26: =F23 -> 510 | C26: KV | D26: =D14 -> 0.073 | E26: =B26*D26 -> 37.23 | F26: =ROUND(E26,2) -> 37.23 | I26: =G14-F26 -> 22.01
C27: ZB | D27: =D15 -> 0.0075 | E27: =B26*D27 -> 3.825 | F27: =ROUND(E27,2) -> 3.83 | H27: =SUM(F26:F27) -> 41.06 | I27: =G15-F27 -> 2.25 | J27: =SUM(I26:I27) -> 24.26
C29: RV | D29: =H4 -> 0.093 | E29: =B26*D29 -> 47.43 | F29: =ROUND(E29,2) -> 47.43 | H29: =F29 -> 47.43 | J29: =H17-H29 -> 28.05
C30: AV | D30: =H5 -> 0.012 | E30: =B26*D30 -> 6.12 | F30: =ROUND(E30,2) -> 6.12 | H30: =F30 -> 6.12 | J30: =H18-H30 -> 3.62
C31: PV | D31: =H6 -> 0.01525 | E31: =B26*D31 -> 7.7775 | F31: =ROUND(E31,2) -> 7.78 | H31: =F31 -> 7.78 | I31: =H19-H31 -> 4.6
I32: =B14*G8 -> 1.42037 | J32: =SUM(I31:I32) -> 6.02037

Sheet ab 1. Oktober 2022
B1: ab Oktober 2022 | F1: Beitrag | G1: Satz | H1: halber Satz | K1: für:
B2: AE | C2: Arbeitsentgelt | E2: 1100 | F2: KV | G2: 0.146 | H2: =G2/2 -> 0.073 | J2: 1) | K2: neue Midi-Jobs ab Oktober 2022
B3: G | C3: Geringfügigkeitsgrenze | E3: 520 | F3: ZB | G3: 0.015 | H3: 0.0075 | J3: 2) | K3: und bei Erhöhung des Durchschnittsentgeltes über 520,00 € (dauerhaft)
E4: 1600 | F4: RV | G4: 0.186 | H4: 0.093
B5: F | C5: 0.7509 | D5: (30% ./. GSV-Beitragssatz) | E5: bis 30.09.2022 | F5: AV | G5: 0.024 | H5: 0.012
B6: F | C6: 0.7009 | D6: (28% ./. GSV-Beitragssatz) | E6: ab 01.10.2022 | F6: PV | G6: 0.0305 | H6: 0.01525
D7: für Kinderlose AN | F7: PV-Zuschlag | G7: 0.0035
A9: A | B9: Gesamtbeitrag je Versicherungszweig | D9: aus der beitragspflichtigen Einnahme, die sich nach der Formel (rechts) ermittelt: | H9: Gesamtbeitrag
B10: Ermittlung der Beitragspflichtigen Einnahme für den Gesamtbeitrag | E10: BE (Gesamt)
F11: =ROUND(E2*K13+N13,2) -> 1027.99
B12: Ermittlung des Gesamtbeitrages | K12: Kurzformel
B13: Beitragspflichtige Einnahme | C13: x | D13: halber Beitragssatz | E13: ergibt halber Beitrag | F13: kaufmännisch runden | G13: x2 | K13: 1.144011111 | L13: x | M13: AE | N13: -230.4177778
B14: =F11 -> 1027.99 | C14: KV | D14: =H2 -> 0.073 | E14: =B14*D14 -> 75.04327 | F14: =ROUND(E14,2) -> 75.04 | G14: =F14*2 -> 150.08
C15: ZB | D15: =H3 -> 0.0075 | E15: =B14*D15 -> 7.709925 | F15: =ROUND(E15,2) -> 7.71 | G15: =F15*2 -> 15.42 | H15: =SUM(G14:G15) -> 165.5 | K15: zur Ermittlung der Beitragspflichtigen Einnahme
C17: RV | D17: =H4 -> 0.093 | E17: =B14*D17 -> 95.60307 | F17: =ROUND(E17,2) -> 95.6 | G17: =F17*2 -> 191.2 | H17: =F17*2 -> 191.2
C18: AV | D18: =H5 -> 0.012 | E18: =B14*D18 -> 12.33588 | F18: =ROUND(E18,2) -> 12.34 | G18: =F18*2 -> 24.68 | H18: =G18 -> 24.68
C19: PV | D19: =H6 -> 0.01525 | E19: =B14*D19 -> 15.6768475 | F19: =ROUND(E19,2) -> 15.68 | G19: =F19*2 -> 31.36 | H19: =F19*2 -> 31.36
C20: PV-Zuschlag | D20: =G7 -> 0.0035 | H20: =D20*B14 -> 3.597965 | I20: =SUM(H19:H20) -> 34.957965
A21: B | B21: Beitragsanteil Arbeitnehmer | H21: Arbeitnehmer-Anteil | I21: Arbeitgeber-Anteil
B22: Ermittlung der Beitragspflichtigen Einnahme für den Arbeitnehmeranteil | E22: BE (AN-Anteil) | F22: =ROUND(E2*K25+N25,4) -> 859.2593
B23: Ermittlung des Arbeitnehmeranteils | I23: (GSV-Beitrag ./. Arbeitnehmer-Anteil)
B24: Beitragspflichtige Einnahme X | D24: halber Beitragssatz | E24: ergibt halber Beitrag | F24: kaufmännisch runden | K24: Kurzformel
B25: =F22 -> 859.2593 | C25: KV | D25: =D14 -> 0.073 | E25: =B25*D25 -> 62.7259289 | F25: =ROUND(E25,2) -> 62.73 | I25: =G14-F25 -> 87.35 | K25: 1.481481481 | L25: x | M25: AE | N25: -770.3703704
C26: ZB | D26: =D15 -> 0.0075 | E26: =B25*D26 -> 6.44444475 | F26: =ROUND(E26,2) -> 6.44 | H26: =SUM(F25:F26) -> 69.17 | I26: =G15-F26 -> 8.98 | J26: =SUM(I25:I26) -> 96.33
K27: zur Ermittlung der Beitragspflichtigen Einnahme
C28: RV | D28: =H4 -> 0.093 | E28: =F22*D28 -> 79.9111149 | F28: =ROUND(E28,2) -> 79.91 | H28: =F28 -> 79.91 | J28: =G17-H28 -> 111.29
C29: AV | D29: =H5 -> 0.012 | E29: =F22*D29 -> 10.3111116 | F29: =ROUND(E29,2) -> 10.31 | H29: =F29 -> 10.31 | J29: =H18-H29 -> 14.37
B31: Arbeitnehmer-Anteil | C31: PV | D31: =H6 -> 0.01525 | E31: =F22*D31 -> 13.10370433 | F31: =ROUND(E31,2) -> 13.1 | H31: =F31 -> 13.1 | J31: =H19-H31 -> 18.26
B32: vom AN allein zu tragen | C32: PV-Zuschlag | D32: =G7 -> 0.0035 | H32: =D32*F11 -> 3.597965 | I32: =SUM(H31:H32) -> 16.697965

Sheet ab Oktober Sachsen
B1: ab Oktober 2022 | F1: Beitrag | G1: Satz | H1: halber Satz | I1: *) Besonderheit PV-Beitragszuschlag Sachsen: Arbeitnehmer mit einem Beschäftigungsort in Sachsen tragen die Beiträge zur Pflegeversicherung in Höhe von 1% allein (§ 58 Absatz 3 Satz 1 SGB XI).
B2: AE | C2: Arbeitsentgelt | E2: 1100 | F2: KV | G2: 0.146 | H2: =G2/2 -> 0.073 | I2: PV-Beitragssatz | L2: =G6 -> 0.0305
B3: G | C3: Geringfügigkeitsgrenze | E3: 520 | F3: ZB | G3: 0.015 | H3: 0.0075 | I3: vom AN allein zu tragen | L3: 0.01
E4: 1600 | F4: RV | G4: 0.186 | H4: 0.093 | L4: =L2-L3 -> 0.0205
B5: F | C5: 0.7509 | D5: (30% ./. GSV-Beitragssatz) | E5: bis 30.09.2022 | F5: AV | G5: 0.024 | H5: 0.012 | L5: ./. 2
B6: F | C6: 0.7009 | D6: (28% ./. GSV-Beitragssatz) | E6: ab 01.10.2022 | F6: PV Sachsen *) | G6: 0.0305 | H6: =G6/2 -> 0.01525 | I6: (AN-Anteil Sachsen) | L6: =L4/2 -> 0.01025
D7: für Kinderlose AN | F7: PV-Zuschlag | G7: 0.0035 | I7: zuzüglich dem Anteil, den der AN alleine trägt | L7: 0.01
L8: =L6+L7 -> 0.02025 | M8: Prozentsatz für PV-Beitrag AN-Anteil
A9: A | B9: Gesamtbeitrag je Versicherungszweig | D9: aus der beitragspflichtigen Einnahme, die sich nach der Formel (rechts) ermittelt: | H9: Gesamtbeitrag | I9: abzüglich | J9: ergibt
B10: Ermittlung der Beitragspflichtigen Einnahme für den Gesamtbeitrag | E10: BE (Gesamt) | I10: Arbeitnehmer-Anteil | J10: Arbeitgeber-Anteil
F11: =ROUND(E2*L12+O12,2) -> 1027.99 | L11: Kurzformel
B12: Ermittlung des Gesamtbeitrages | L12: 1.144011111 | M12: x | N12: AE | O12: -230.4177778
B13: Beitragspflichtige Einnahme | C13: x | D13: halber Beitragssatz | E13: ergibt halber Beitrag | F13: kaufmännisch runden | G13: x2
B14: =F11 -> 1027.99 | C14: KV | D14: =H2 -> 0.073 | E14: =B14*D14 -> 75.04327 | F14: =ROUND(E14,2) -> 75.04 | G14: =F14*2 -> 150.08 | L14: zur Ermittlung der Beitragspflichtigen Einnahme
C15: ZB | D15: =H3 -> 0.0075 | E15: =B14*D15 -> 7.709925 | F15: =ROUND(E15,2) -> 7.71 | G15: =F15*2 -> 15.42 | H15: =SUM(G14:G15) -> 165.5
C17: RV | D17: =H4 -> 0.093 | E17: =B14*D17 -> 95.60307 | F17: =ROUND(E17,2) -> 95.6 | G17: =F17*2 -> 191.2 | H17: =F17*2 -> 191.2
C18: AV | D18: =H5 -> 0.012 | E18: =B14*D18 -> 12.33588 | F18: =ROUND(E18,2) -> 12.34 | G18: =F18*2 -> 24.68 | H18: =G18 -> 24.68
C19: PV | D19: =H6 -> 0.01525 | E19: =B14*D19 -> 15.6768475 | F19: =ROUND(E19,2) -> 15.68 | G19: =F19*2 -> 31.36 | H19: =F19*2 -> 31.36
A22: B | B22: Beitragsanteil Arbeitnehmer | H22: Arbeitnehmer-Anteil
B23: Ermittlung der Beitragspflichtigen Einnahme für den Arbeitnehmeranteil | E23: BE (AN-Anteil) | F23: =ROUND(E2*L24+O24,4) -> 859.2593 | L23: Kurzformel
B24: Ermittlung des Arbeitnehmeranteils | L24: 1.481481481 | M24: x | N24: AE | O24: -770.3703704
B25: Beitragspflichtige Einnahme X | D25: halber Beitragssatz | E25: ergibt halber Beitrag | F25: kaufmännisch runden
B26: =F23 -> 859.2593 | C26: KV | D26: =D14 -> 0.073 | E26: =B26*D26 -> 62.7259289 | F26: =ROUND(E26,2) -> 62.73 | L26: zur Ermittlung der Beitragspflichtigen Einnahme
C27: ZB | D27: =D15 -> 0.0075 | E27: =B26*D27 -> 6.44444475 | F27: =ROUND(E27,2) -> 6.44 | H27: =SUM(F26:F27) -> 69.17 | I27: =H27 -> 69.17 | J27: =H15-H27 -> 96.33
C29: RV | D29: =H4 -> 0.093 | E29: =F23*D29 -> 79.9111149 | F29: =ROUND(E29,2) -> 79.91 | H29: =F29 -> 79.91 | I29: =H29 -> 79.91 | J29: =H17-H29 -> 111.29
C30: AV | D30: =H5 -> 0.012 | E30: =F23*D30 -> 10.3111116 | F30: =ROUND(E30,2) -> 10.31 | H30: =F30 -> 10.31 | I30: =H30 -> 10.31 | J30: =H19-H32 -> 13.96
E31: =F23*D31 -> 0 | F31: =ROUND(E31,2) -> 0 | H31: =F31 -> 0
B32: *) siehe Besonderheit | C32: PV Sachsen | D32: =L8 -> 0.02025 | E32: =F23*D32 -> 17.40000082 | F32: =ROUND(E32,2) -> 17.4 | H32: =F32 -> 17.4
B33: vom AN allein zu tragen | C33: PV-Zuschlag | D33: =G7 -> 0.0035 | H33: =D33*F11 -> 3.597965 | I33: =SUM(H32:H33) -> 20.997965 | J33: =H19-H32 -> 13.96

Sheet Mehrfachbeschäftigung
B1: ab Oktober 2022 | F1: Beitrag | G1: Satz | H1: halber Satz | K1: keine Zusammenrechnung der Mehrfachbeschäftigung in der Arbeitslosenversicherung
B2: AE | C2: Arbeitsentgelt | E2: 1100 | F2: KV | G2: 0.146 | H2: =G2/2 -> 0.073
C3: Fremdentgelt | E3: 360
C4: Gesamtentgelt | E4: =SUM(E2:E3) -> 1460
B5: G | C5: Geringfügigkeitsgrenze | E5: 520 | F5: ZB | G5: 0.015 | H5: 0.0075
E6: 1600 | F6: RV | G6: 0.186 | H6: 0.093
B7: F | C7: 0.7509 | D7: (30% ./. GSV-Beitragssatz) | E7: bis 30.09.2022 | F7: AV | G7: 0.024 | H7: 0.012
B8: F | C8: 0.7009 | D8: (28% ./. GSV-Beitragssatz) | E8: ab 01.10.2022 | F8: PV | G8: 0.0305 | H8: =G8/2 -> 0.01525
F9: PV-Zuschlag | G9: 0.0035 | I9: für Kinderlose AN
A11: A | B11: Gesamtbeitrag je Versicherungszweig | D11: aus der beitragspflichtigen Einnahme, die sich nach der Formel (rechts) ermittelt: | H11: Gesamtbeitrag | I11: abzüglich | J11: ergibt
B12: Ermittlung der Beitragspflichtigen Einnahme für den Gesamtbeitrag | E12: BE (Gesamt) | F12: =((C8*E5+((E6/(E6-E5))-(E5/(E6-E5))*C8)*(E4-E5))*E2)/E4 -> 1084.809787 | I12: Arbeitnehmer-Anteil | J12: Arbeitgeber-Anteil
B14: Ermittlung des Gesamtbeitrages
B15: Beitragspflichtige Einnahme | C15: x | D15: halber Beitragssatz | E15: ergibt halber Beitrag | F15: kaufmännisch runden | G15: x2
B16: =F12 -> 1084.809787 | C16: KV | D16: =H2 -> 0.073 | E16: =B16*D16 -> 79.19111444 | F16: =ROUND(E16,2) -> 79.19 | G16: =F16*2 -> 158.38 | L16: zur Ermittlung der Beitragspflichtigen Einnahme
C17: ZB | D17: =H5 -> 0.0075 | E17: =B16*D17 -> 8.136073402 | F17: =ROUND(E17,2) -> 8.14 | G17: =F17*2 -> 16.28 | H17: =SUM(G16:G17) -> 174.66
C19: RV | D19: =H6 -> 0.093 | E19: =B16*D19 -> 100.8873102 | F19: =ROUND(E19,2) -> 100.89 | G19: =F19*2 -> 201.78 | H19: =F19*2 -> 201.78
B20: =E2*K22+N22 -> 1027.994444 | C20: AV | D20: =H7 -> 0.012 | E20: =B20*D20 -> 12.33593333 | F20: =ROUND(E20,2) -> 12.34 | G20: =F20*2 -> 24.68 | H20: =G20 -> 24.68 | K20: HIER: normale Formel zur Ermittlung der beitragspflichtigen Einnahme, soweit KEINE Zusammenrechnung erfolgt!
C21: PV | D21: =H8 -> 0.01525 | E21: =B16*D21 -> 16.54334925 | F21: =ROUND(E21,2) -> 16.54 | G21: =F21*2 -> 33.08 | H21: =F21*2 -> 33.08 | K21: Kurzformel
K22: 1.144011111 | L22: x | M22: AE | N22: -230.4177778
A24: B | B24: Beitragsanteil Arbeitnehmer | H24: Arbeitnehmer-Anteil
B25: Ermittlung der Beitragspflichtigen Einnahme für den Arbeitnehmeranteil | E25: BE (AN-Anteil) | F25: =((E6/(E6-E5)*(E4-E5))*E2)/E4 -> 1049.213597
B26: Ermittlung des Arbeitnehmeranteils
B27: Beitragspflichtige Einnahme X | D27: halber Beitragssatz | E27: ergibt halber Beitrag | F27: kaufmännisch runden
B28: =F25 -> 1049.213597 | C28: KV | D28: =D16 -> 0.073 | E28: =B28*D28 -> 76.59259259 | F28: =ROUND(E28,2) -> 76.59
C29: ZB | D29: =D17 -> 0.0075 | E29: =B28*D29 -> 7.869101979 | F29: =ROUND(E29,2) -> 7.87 | H29: =SUM(F28:F29) -> 84.46 | I29: =H29 -> 84.46 | J29: =H17-H29 -> 90.2 | L29: zur Ermittlung der Beitragspflichtigen Einnahme
C31: RV | D31: =H6 -> 0.093 | E31: =F25*D31 -> 97.57686454 | F31: =ROUND(E31,2) -> 97.58 | H31: =F31 -> 97.58 | I31: =H31 -> 97.58 | J31: =H19-H31 -> 104.2
B32: =E2*K34+N34 -> 859.2592592 | C32: AV | D32: =H7 -> 0.012 | E32: =D32*B32 -> 10.31111111 | F32: =ROUND(E32,2) -> 10.31 | H32: =F32 -> 10.31 | I32: =H32 -> 10.31 | J32: =H21-H34 -> 17.08 | K32: HIER: normale Formel zur Ermittlung der beitragspflichtigen Einnahme, soweit KEINE Zusammenrechnung erfolgt!
E33: =F25*D33 -> 0 | F33: =ROUND(E33,2) -> 0 | H33: =F33 -> 0 | K33: Kurzformel
C34: PV Sachsen | D34: =H8 -> 0.01525 | E34: =F25*D34 -> 16.00050736 | F34: =ROUND(E34,2) -> 16 | H34: =F34 -> 16 | K34: 1.481481481 | L34: x | M34: AE | N34: -770.3703704
B35: vom AN allein zu tragen | C35: PV-Zuschlag | D35: =G9 -> 0.0035 | H35: =D35*F13 -> 0 | I35: =SUM(H34:H35) -> 16 | J35: =H21-H34 -> 17.08

Sheet Unterschreitung 450_520€
A1: Unterschreitung der unteren Entgeltgrenze
A3: Bestandsschutz | D3: ab 1. Oktober 2022
A17: Berechnung der beitragspflichtigen Einnahme:
B19: 400 | C19: Arbeitsentgelt | E19: 510 | F19: Arbeitsentgelt
A20: mal | B20: 0.7509 | C20: Faktor (FÜ) | D20: mal | E20: 0.7009 | F20: Faktor (F)
A21: ergibt | B21: =B19*B20 -> 300.36 | C21: als beitragspflichtige Einnahme | E21: =E19*E20 -> 357.459 | F21: als beitragspflichtige Einnahme
